bitfinex-derivatives/quotes_SOLF0:USTF0_20220104
["timestamp","ask_amount","ask_price","bid_price","bid_amount"]
[1641301176377,51.60450702,171.55,171.46,0.65712015]
[1641301176879,3.28583604,171.54,171.46,0.65712015]
[1641301177079,65.71433604,171.54,171.46,0.65712015]
[1641301177277,65.71433604,171.54,171.46,28.32191015]
[1641301177477,32.85857858,171.49,171.46,28.32191015]
[1641301177679,32.85857858,171.49,171.46,34.32191015]
[1641301177879,32.85857858,171.49,171.47,0.65712015]
[1641301179179,32.85857858,171.51,171.47,0.65712015]
[1641301180381,32.85857858,171.51,171.47,6.25612015]
[1641301180983,32.85857858,171.51,171.48,0.65712015]
[1641301181182,32.85857858,171.51,171.5,27.66479]
[1641301181886,32.85857858,171.51,171.5,28.32191015]
[1641301183285,42.90283926,171.53,171.5,34.14602197]
[1641301183484,48.31867098,171.58,171.5,34.14602197]
[1641301183886,48.31867098,171.58,171.51,0.65712015]
[1641301184285,4.10567346,171.53,171.52,4.10720418]
[1641301184488,2.91309384,171.53,171.52,4.10720418]
[1641301184685,1.0,171.53,171.52,4.10720418]
[1641301184885,480.3251,171.6,171.52,4.76432433]
[1641301185085,480.3251,171.6,171.52,0.65712015]
[1641301185285,480.3251,171.6,171.55,27.66479]
[1641301185886,480.3251,171.6,171.56,0.65712015]
[1641301191896,480.3251,171.6,171.51,0.65712015]
[1641301192995,484.5641,171.6,171.51,0.65712015]
[1641301193296,12.31767636,171.59,171.51,12.97479651]
[1641301193698,12.31767636,171.59,171.52,0.65712015]
[1641301195301,12.31767636,171.59,171.55,27.66479]
[1641301195500,12.31767636,171.59,171.52,0.65712015]
[1641301195802,12.31767636,171.57,171.52,0.65712015]
[1641301196202,12.31767636,171.57,171.51,0.65712015]
[1641301196602,12.31767636,171.57,171.53,2.08276181]
[1641301197003,12.31767636,171.57,171.54,0.65712015]
[1641301197602,12.31767636,171.57,171.53,0.65712015]
[1641301198804,12.31767636,171.57,171.51,0.65712015]
[1641301200309,12.31767636,171.57,171.52,2.08275948]
[1641301201005,12.31767636,171.57,171.53,0.65712015]
[1641301201807,12.31767636,171.58,171.53,0.65712015]
[1641301202307,12.31767636,171.58,171.51,0.65712015]
[1641301203009,2.02317285,171.59,171.51,0.65712015]
[1641301203508,2.02317285,171.59,171.53,27.66479]
[1641301203908,2.02317285,171.59,171.54,0.65712015]
[1641301204508,419.02317285,171.59,171.54,5.04612015]
[1641301205109,419.02317285,171.59,171.55,0.65712015]
[1641301205411,417.0,171.59,171.55,0.65712015]
[1641301205610,417.0,171.59,171.57,27.66479]
[1641301206108,417.0,171.59,171.58,0.65712015]
[1641301206309,417.0,171.59,171.58,6.83912015]
[1641301207110,431.34018267,171.59,171.58,6.83912015]
[1641301207810,431.34018267,171.59,171.58,12.83912015]
[1641301208511,419.02250631,171.59,171.58,12.83912015]
[1641301208710,394.39560015,171.59,171.58,12.83912015]
[1641301209113,395.02250631,171.59,171.58,12.83912015]
[1641301209313,395.02250631,171.59,171.58,14.92211815]
[1641301210614,393.0,171.59,171.58,14.92211815]
[1641301211512,361.7775,171.59,171.58,14.92211815]
[1641301212512,361.7775,171.59,171.58,20.74300933]
[1641301212912,362.0,171.59,171.58,20.74300933]
[1641301213113,301.0319,171.59,171.58,20.74300933]
[1641301213316,242.217,171.59,171.58,20.74300933]
[1641301213915,242.217,171.59,171.58,14.92211815]
[1641301214118,242.0,171.59,171.58,14.92211815]
[1641301214416,242.0,171.59,171.58,23.21313341]
[1641301215217,242.0,171.59,171.58,14.92211815]
[1641301223629,242.0,171.59,171.58,8.74011815]
[1641301223828,242.0,171.59,171.58,36.40490815]
[1641301229134,235.43412112,171.59,171.58,36.40490815]
[1641301230235,235.0,171.59,171.58,36.40490815]
[1641301233236,235.0,171.59,171.58,8.74011815]
[1641301234037,235.0,171.59,171.58,36.40490815]
[1641301237143,235.0,171.59,171.58,40.58990815]
[1641301237342,235.0,171.59,171.58,46.41079933]
[1641301238044,235.0,171.59,171.58,58.72458723]
[1641301238244,235.0,171.59,171.58,66.85807446]
[1641301238544,235.0,171.59,171.58,54.54428656]
[1641301239244,235.0,171.59,171.58,66.85267829]
[1641301240246,235.0,171.59,171.58,54.54428656]
[1641301240647,80.2631,171.59,171.58,54.54428656]
[1641301240845,60.2631,171.59,171.58,54.54428656]
[1641301241048,42.9431,171.59,171.58,54.54428656]
[1641301241247,28.8,171.59,171.58,54.54428656]
[1641301241647,19.7,171.59,171.58,54.54428656]
[1641301241847,19.7,171.59,171.58,111.79428656]
[1641301242247,19.0,171.59,171.58,124.04266837]
[1641301242649,6.13767636,171.71,171.58,124.03978976]
[1641301242847,5.25767636,171.71,171.58,124.03978976]
[1641301243049,3.39767636,171.71,171.67,10.08329456]
[1641301243249,2.07767636,171.71,171.67,6.347]
[1641301243449,23.45217992,171.75,171.68,0.65712015]
[1641301244049,59.3555,171.85,171.68,0.65712015]
[1641301244050,23.45217992,171.81,171.68,0.65712015]
[1641301244249,23.45217992,171.81,171.74,27.66479]
[1641301244651,23.45217992,171.81,171.71,27.66479]
[1641301244949,23.45217992,171.81,171.75,0.65712015]
[1641301245148,27.66479,171.83,171.75,0.65712015]
[1641301245350,4.10041966,171.76,171.75,6.84053781]
[1641301245550,4.10041966,171.76,171.75,6.18341766]
[1641301245851,4.10041966,171.76,171.75,6.84053781]
[1641301246353,9.49944519,171.82,171.75,6.84053781]
[1641301246753,3.28014475,171.81,171.76,0.65712015]
[1641301247353,9.49944519,171.82,171.76,0.65712015]
[1641301247753,9.49944519,171.82,171.75,0.65712015]
[1641301248154,9.49944519,171.82,171.75,28.32191015]
[1641301248655,9.49944519,171.82,171.76,0.65712015]
[1641301249058,9.49944519,171.82,171.75,4.75753981]
[1641301249355,9.49944519,171.82,171.75,0.65712015]
[1641301249556,9.49944519,171.82,171.76,0.65712015]
[1641301250157,9.49944519,171.82,171.74,0.65712015]
[1641301250357,9.49944519,171.82,171.77,0.65712015]
[1641301250959,9.49944519,171.82,171.73,4.10041966]
[1641301250960,4.09995732,171.77,171.76,4.10041966]
[1641301251357,4.09995732,171.77,171.76,0.65712015]
[1641301251557,4.09995732,171.79,171.76,0.65712015]
[1641301252158,4.09995732,171.79,171.78,27.66479]
[1641301252662,4.09995732,171.79,171.78,28.32191015]
[1641301252861,4.09995732,171.8,171.78,30.57719534]
[1641301253461,4.09995732,171.8,171.79,7.01151874]
[1641301254863,4.09995732,171.81,171.79,2.91240534]
[1641301255264,4.09995732,171.81,171.8,0.65712015]
[1641301255463,4.09995732,171.81,171.8,7.01125415]
[1641301256966,4.09995732,171.81,171.8,2.91240534]
[1641301257868,4.09995732,171.81,171.8,7.01129078]
[1641301259367,4.09995732,171.82,171.8,2.91240534]
[1641301260068,4.09995732,171.82,171.81,0.65712015]
[1641301260270,1.84522693,171.83,171.81,0.65712015]
[1641301260471,1.84522693,171.83,171.72,8.64]
[1641301260669,6.59922693,171.83,171.66,23.81733566]
[1641301261477,1.84522693,171.83,171.71,63.0658132]
[1641301261674,1.84522693,171.83,171.71,5.8158132]
[1641301261870,1.84522693,171.82,171.72,2.21840868]
[1641301262172,1.84522693,171.82,171.72,9.08930104]
[1641301262372,1.84522693,171.82,171.75,27.66479]
[1641301262773,63.956,171.84,171.75,27.66479]
[1641301262972,63.956,171.84,171.76,0.65589236]
[1641301265376,63.956,171.84,171.73,0.65589236]
[1641301265879,3.27944457,171.83,171.73,0.65589236]
[1641301266084,3.27944457,171.83,171.74,34.52256989]
[1641301266680,3.27944457,171.83,171.75,0.65589236]
[1641301267082,1.8808013,171.82,171.75,0.65589236]
[1641301267482,1.8808013,171.82,171.75,9.236e-05]
[1641301267681,3.27944457,171.81,171.75,9.236e-05]
[1641301268085,3.27944457,171.81,171.76,2.21819865]
[1641301268484,27.66479,171.77,171.71,32.30437124]
[1641301268885,27.66479,171.77,171.69,32.30437124]
[1641301269485,27.66479,171.77,171.71,0.65611184]
[1641301270485,27.66479,171.77,171.68,0.65611184]
[1641301270985,60.4937,171.76,171.68,0.65611184]
[1641301272387,18.12356877,171.82,171.75,27.66479]
[1641301272587,18.12356877,171.82,171.75,33.96379]
[1641301272987,185.9734,171.86,171.76,0.65611184]
[1641301273390,3.2795205,171.85,171.76,0.65611184]
[1641301273989,185.9734,171.86,171.79,12.2963735]
[1641301274289,3.27911895,171.85,171.8,0.65611184]
[1641301274989,3.27911895,171.85,171.81,12.2963735]
[1641301275290,124.0646,171.86,171.81,12.2963735]
[1641301275489,124.0646,171.86,171.82,12.2963735]
[1641301275692,64.0571,171.86,171.82,12.2963735]
[1641301275889,64.0571,171.86,171.82,12.95248534]
[1641301276089,64.0571,171.86,171.83,0.65611184]
[1641301276288,27.66479,171.88,171.83,0.65611184]
[1641301276491,39.9611635,171.88,171.83,0.65611184]
[1641301276690,3.27892935,171.87,171.83,0.65611184]
[1641301277191,15.57530285,171.87,171.8,0.65611184]
[1641301277591,3.27892935,171.86,171.8,0.65611184]
[1641301278294,3.27892935,171.86,171.79,0.65611184]
[1641301278491,3.27892935,171.86,171.8,6.0]
[1641301278892,3.27892935,171.86,171.81,0.65611184]
[1641301279193,15.57530285,171.86,171.81,0.65611184]
[1641301279692,12.2963735,171.86,171.81,0.65611184]
[1641301279892,12.2963735,171.87,171.81,0.65611184]
[1641301280591,3.27885748,171.86,171.81,0.65611184]
[1641301281995,3.27885748,171.87,171.81,0.65611184]
[1641301282194,3.27885748,171.87,171.81,12.95248534]
[1641301282395,27.66479,171.88,171.81,12.95248534]
[1641301282696,12.2963735,171.89,171.82,27.66479]
[1641301282894,12.2963735,171.89,171.82,28.32090184]
[1641301283094,73.4994735,171.9,171.82,28.32090184]
[1641301283295,12.2963735,171.9,171.83,0.65611184]
[1641301283896,18.1115103,171.94,171.86,12.2963735]
[1641301284096,60.1316,171.92,171.86,12.2963735]
[1641301284498,60.1316,171.92,171.87,0.65611184]
[1641301284696,87.79639,171.92,171.88,12.2963735]
[1641301285296,87.79639,171.92,171.89,0.65611184]
[1641301285501,87.79639,171.92,171.89,12.95248534]
[1641301286099,87.79639,171.92,171.9,0.65611184]
[1641301286297,27.66479,171.92,171.9,0.65611184]
[1641301287100,27.66479,171.92,171.86,0.65611184]
[1641301289303,21.10953545,171.92,171.86,0.65611184]
[1641301290905,21.10953545,171.92,171.86,27.66479]
[1641301291306,21.10953545,171.92,171.87,0.65611184]
[1641301291603,21.10953545,171.92,171.87,21.64087992]
[1641301292005,21.10953545,171.92,171.87,20.32867992]
[1641301292405,21.10953545,171.92,171.87,8.68839458]
[1641301292606,21.10953545,171.92,171.78,63.06378448]
[1641301292804,21.10953545,171.92,171.8,33.66479]
[1641301293603,21.10953545,171.92,171.81,0.65552579]
[1641301294005,21.10953545,171.92,171.86,32.45282739]
[1641301294606,21.10953545,171.92,171.86,0.65555318]
[1641301295910,21.10953545,171.92,171.8,33.66479]
[1641301296311,21.10953545,171.92,171.81,0.65558852]
[1641301297812,3.27816158,171.91,171.81,0.65558852]
[1641301298213,21.10953545,171.92,171.81,0.65558852]
[1641301299013,21.10953545,171.92,171.81,7.32958852]
[1641301299414,67.67740589,171.93,171.81,20.0800053]
[1641301299614,67.67740589,171.93,171.82,0.65558852]
[1641301300214,61.8621,171.93,171.82,0.65558852]
[1641301300814,61.8621,171.93,171.87,27.66479]
[1641301301216,61.8621,171.93,171.88,0.65558852]
[1641301309225,2.26223095,171.92,171.88,0.65558852]
[1641301313630,70.62022833,171.97,171.89,1.82969339]
[1641301314130,2.26223095,171.96,171.9,0.65558852]
[1641301315431,2.26223095,171.96,171.88,0.65558852]
[1641301316233,2.26223095,171.96,171.89,1.82971749]
[1641301316737,2.26223095,171.96,171.9,0.65558852]
[1641301316936,11.03041175,171.96,171.9,0.65558852]
[1641301317538,11.03041175,171.96,171.89,1.82971749]
[1641301317736,11.03041175,171.96,171.87,27.66479]
[1641301317936,11.03041175,171.96,171.9,0.65533382]
[1641301318336,11.03041175,171.96,171.91,1.83192446]
[1641301318739,11.03041175,171.96,171.92,0.65533382]
[1641301320440,11.03041175,171.96,171.88,0.65533382]
[1641301320940,4.09528935,171.94,171.93,5.9273269]
[1641301321342,4.09528935,171.94,171.93,6.58266072]
[1641301322539,4.09528935,171.94,171.93,2.48737137]
[1641301323541,4.09528935,171.95,171.93,2.48737137]
[1641301323942,4.09528935,171.95,171.94,0.65533382]
[1641301324744,4.09528935,171.95,171.94,6.58252057]
[1641301325545,4.09528935,171.97,171.94,2.48737137]
[1641301326045,4.09528935,171.97,171.95,0.65533382]
[1641301326244,4.09528935,171.97,171.95,2.48737137]
[1641301326945,4.09528935,171.97,171.96,0.65533382]
[1641301327145,4.09528935,171.97,171.96,8.79537137]
[1641301327345,4.09528935,171.97,171.96,36.46016137]
[1641301329349,4.09528935,171.97,171.96,8.79537137]
[1641301329550,4.09528935,171.97,171.96,2.48737137]
[1641301330955,4.09528935,171.97,171.96,6.58194598]
[1641301331555,4.09528935,171.97,171.96,10.86394598]
[1641301332658,4.09528935,171.97,171.96,6.76937137]
[1641301332857,4.09528935,171.98,171.96,6.76937137]
[1641301333157,4.09528935,171.98,171.96,2.48737137]
[1641301333358,4.09528935,171.98,171.97,27.66479]
[1641301333557,4.09528935,171.99,171.97,30.15216137]
[1641301333958,4.09528935,171.99,171.98,0.65533382]
[1641301334559,4.09528935,172.02,171.98,2.48737137]
[1641301335259,4.09528935,172.02,171.99,0.65533382]
[1641301335459,4.09528935,172.02,172.01,4.09330575]
[1641301335862,4.09528935,172.02,172.01,4.74863957]
[1641301336962,4.09528935,172.02,172.01,2.48737137]
[1641301337967,2.26223095,172.03,172.01,0.65533382]
[1641301338869,2.26223095,172.03,172.01,4.74901292]
[1641301339468,2.26223095,172.03,172.02,0.65533382]
[1641301339968,2.26223095,172.03,172.01,0.65533382]
[1641301342375,7.30923095,172.03,172.01,0.65533382]
[1641301342777,7.30923095,172.03,171.97,27.66479]
[1641301342976,7.30923095,172.03,171.96,12.28581956]
[1641301343477,2.26223095,172.02,171.95,18.28581956]
[1641301343876,2.26223095,172.02,171.96,0.65524027]
[1641301344278,12.28581956,172.01,171.96,2.4525773]
[1641301344979,12.28581956,172.01,171.97,0.65524027]
[1641301345880,12.28581956,172.0,171.96,0.65524027]
[1641301346980,12.28581956,172.02,171.97,1.79738009]
[1641301347681,12.28581956,172.02,171.98,0.65524027]
[1641301348984,12.28581956,172.02,171.95,6.0]
[1641301349185,23.62508344,172.02,171.95,6.0]
[1641301349384,12.28581956,172.0,171.95,6.0]
[1641301349584,39.95060956,172.0,171.95,6.0]
[1641301350485,12.28581956,172.0,171.96,0.65529898]
[1641301350685,14.54805051,171.99,171.96,0.65529898]
[1641301351288,12.28581956,172.0,171.96,0.65529898]
[1641301352088,12.28581956,172.01,171.97,1.79732519]
[1641301352687,12.28581956,172.01,171.98,0.65529898]
[1641301353088,11.12122645,172.02,171.98,0.65529898]
[1641301353691,11.12122645,172.02,171.98,9.898e-05]
[1641301353889,12.28694684,172.0,171.95,6.0]
[1641301355089,12.28694684,171.98,171.96,0.65536247]
[1641301355689,39.95173684,171.98,171.96,0.65536247]
[1641301355889,32.65679,171.98,171.89,12.28581956]
[1641301356089,62.4017,171.97,171.89,12.28581956]
[1641301357290,12.29038849,171.95,171.9,0.65551285]
[1641301357492,12.29038849,171.95,171.9,1.285e-05]
[1641301357792,27.66479,171.93,171.87,1.79702763]
[1641301357993,39.95517849,171.93,171.87,1.79702763]
[1641301358594,39.95517849,171.93,171.88,0.65556151]
[1641301359195,14.55440456,171.92,171.87,1.79702763]
[1641301360697,12.29217361,171.91,171.86,18.0]
[1641301361399,12.29217361,171.91,171.87,0.65559533]
[1641301361602,14.55440456,171.92,171.87,2.4524811]
[1641301362397,14.55440456,171.92,171.86,18.0]
[1641301362598,76.13260456,171.92,171.83,12.28581956]
[1641301362898,18.10849421,171.9,171.83,12.28581956]
[1641301363097,18.10849421,171.9,171.81,7.52327112]
[1641301363098,5.81750487,171.87,171.86,18.0]
[1641301363298,5.81750487,171.87,171.81,19.80909068]
[1641301363700,5.81750487,171.87,171.82,0.65584077]
[1641301363899,27.66479,171.83,171.82,0.65584077]
[1641301364099,27.66479,171.83,171.82,4.077e-05]
[1641301364499,92.56379,171.83,171.82,4.077e-05]
[1641301364701,64.899,171.83,171.82,4.077e-05]
[1641301364901,64.899,171.83,171.77,12.28581956]
[1641301365100,67.16123095,171.83,171.77,12.28581956]
[1641301365400,67.16123095,171.83,171.78,0.65574438]
[1641301365800,92.56379,171.83,171.78,0.65574438]
[1641301366002,92.56379,171.83,171.78,12.94156394]
[1641301366704,92.56379,171.83,171.79,0.65574438]
[1641301367105,64.899,171.83,171.79,0.65574438]
[1641301367304,64.899,171.83,171.79,8.01135056]
[1641301367704,58.34074867,171.83,171.79,8.01135056]
[1641301367905,58.34074867,171.83,171.8,1.79660618]
[1641301368105,58.34074867,171.83,171.8,2.45235056]
[1641301368607,58.34074867,171.83,171.81,0.65574438]
[1641301368807,58.34074867,171.83,171.81,2.45235056]
[1641301369210,58.34074867,171.83,171.82,0.65574438]
[1641301369408,27.66479,171.85,171.82,0.65574438]
[1641301369608,39.96079903,171.85,171.82,0.65574438]
[1641301370109,5.81852035,171.84,171.77,12.28581956]
[1641301370508,5.81987487,171.8,171.77,12.28581956]
[1641301370708,12.04987487,171.8,171.73,32.72834391]
[1641301370909,6.23,171.8,171.73,32.72834391]
[1641301371108,5.82123003,171.76,171.73,32.72834391]
[1641301371310,5.82123003,171.76,171.65,32.72834391]
[1641301371510,58.7113,171.75,171.74,0.65612282]
[1641301371709,58.7113,171.75,171.65,32.72834391]
[1641301371910,27.66479,171.73,171.65,32.72834391]
[1641301373010,27.66479,171.73,171.62,60.39313391]
[1641301373617,2.36130094,171.72,171.63,41.42715517]
[1641301375315,2.36130094,171.72,171.61,41.42715517]
[1641301375514,8.18388675,171.72,171.61,41.42715517]
[1641301375914,27.66479,171.68,171.61,41.42715517]
[1641301376116,27.66479,171.68,171.6,27.66479]
[1641301376519,27.66479,171.73,171.6,27.66479]
[1641301376716,27.66479,171.73,171.61,5.81953618]
[1641301377315,27.66479,171.73,171.6,32.13879]
[1641301378018,27.66479,171.73,171.6,27.66479]
[1641301378217,33.48703681,171.73,171.6,27.66479]
[1641301378418,38.44603681,171.73,171.6,27.66479]
[1641301378819,38.44603681,171.73,171.66,32.72834391]
[1641301379821,5.82326394,171.7,171.65,32.72834391]
[1641301380121,27.66479,171.69,171.65,32.72834391]
[1641301380819,27.66479,171.69,171.64,32.72834391]
[1641301381018,64.6094,171.68,171.64,32.72834391]
[1641301381520,64.6094,171.68,171.66,6.0]
[1641301381820,27.66479,171.69,171.66,6.0]
[1641301382221,27.66479,171.69,171.67,1.62664231]
[1641301384927,27.66479,171.69,171.67,4.231e-05]
[1641301385425,59.1752,171.72,171.67,4.231e-05]
[1641301385725,60.0035,171.78,171.67,4.939]
[1641301385925,60.0035,171.78,171.7,27.66479]
[1641301386525,27.66479,171.84,171.72,32.72834391]
[1641301386726,5.81784333,171.86,171.72,39.16134391]
[1641301387527,5.81784333,171.86,171.76,32.72834391]
[1641301387727,62.011,171.89,171.76,38.61334391]
[1641301388130,27.66479,171.87,171.78,27.66479]
[1641301388328,27.66479,171.87,171.78,60.39313391]
[1641301389030,27.66479,171.87,171.79,7.07210004]
[1641301389230,62.011,171.89,171.79,7.07210004]
[1641301389631,62.011,171.89,171.79,39.80044395]
[1641301390630,62.011,171.89,171.8,32.72834391]
[1641301390831,62.011,171.89,171.8,38.64534391]
[1641301392032,62.011,171.89,171.82,27.66479]
[1641301392232,91.01569,171.9,171.82,27.66479]
[1641301393132,91.01569,171.9,171.83,7.07210004]
[1641301393332,63.3509,171.9,171.83,7.07210004]
[1641301395935,63.3509,171.9,171.83,39.80044395]
[1641301396235,91.01569,171.9,171.83,39.80044395]
[1641301396435,91.01569,171.9,171.83,7.07210004]
[1641301397839,91.01569,171.9,171.81,32.72834391]
[1641301400041,91.01569,171.9,171.81,60.39313391]
[1641301400543,91.01569,171.9,171.82,39.80044395]
[1641301401342,91.01569,171.9,171.84,12.29409935]
[1641301401943,91.01569,171.9,171.82,12.29409935]
[1641301402143,27.66479,171.87,171.82,12.29409935]
[1641301403745,27.66479,171.87,171.86,4.09837882]
[1641301403746,31.76316882,171.87,171.86,4.09837882]
[1641301404347,31.76316882,171.87,171.83,12.29409935]
[1641301406549,31.76316882,171.87,171.86,4.09847329]
[1641301407350,31.76316882,171.87,171.79,32.72834391]
[1641301407649,36.62516882,171.87,171.79,32.72834391]
[1641301407849,5.81767409,171.86,171.79,32.72834391]
[1641301408052,5.81767409,171.86,171.74,7.07210004]
[1641301408250,27.66479,171.82,171.74,7.07210004]
[1641301408651,9.74307994,171.81,171.71,7.07210004]
[1641301409552,27.66479,171.82,171.71,7.07210004]
[1641301410153,27.66479,171.82,171.73,27.66479]
[1641301410755,27.66479,171.82,171.74,7.07210004]
[1641301411555,5.81767409,171.86,171.74,11.29910004]
[1641301411757,58.6884,171.85,171.74,11.29910004]
[1641301413260,58.6884,171.85,171.74,44.02744395]
[1641301414060,27.66479,171.87,171.74,44.02744395]
[1641301414260,27.66479,171.87,171.77,27.66479]
[1641301415162,27.66479,171.87,171.78,7.07210004]
[1641301416765,27.66479,171.87,171.77,27.66479]
[1641301416964,9.73889987,171.86,171.77,27.66479]
[1641301417864,9.73889987,171.86,171.78,6.0]
[1641301418664,9.73889987,171.86,171.78,12.774]
[1641301419064,27.66479,171.88,171.78,12.774]
[1641301419264,27.66479,171.88,171.78,19.42828248]
[1641301419664,32.72834391,171.9,171.78,19.42828248]
[1641301419864,49.72834391,171.93,171.78,19.42828248]
[1641301420264,27.66479,171.92,171.81,27.66479]
[1641301420463,90.37239,171.92,171.81,27.66479]
[1641301421664,9.73161318,171.91,171.82,6.65428248]
[1641301424165,9.73161318,171.91,171.86,27.66479]
[1641301424365,60.39313391,171.94,171.86,4.604]
[1641301424565,27.66479,171.94,171.86,4.604]
[1641301425566,2.6245992,171.93,171.87,1.47203663]
[1641301426267,2.6245992,171.93,171.87,29.13682663]
[1641301427369,2.6245992,171.93,171.88,1.47203663]
[1641301428772,27.66479,171.94,171.88,1.47203663]
[1641301429471,2.62401597,171.93,171.88,1.47203663]
[1641301430373,27.66479,171.94,171.88,1.47203663]
[1641301430873,2.62397036,171.93,171.88,1.47203663]
[1641301431374,27.66479,171.94,171.88,1.47203663]
[1641301432573,12.35419273,171.93,171.88,1.47203663]
[1641301433275,12.35419273,171.93,171.85,1.47203663]
[1641301434075,61.53,171.92,171.85,1.47203663]
[1641301434879,27.66479,171.91,171.85,1.47203663]
[1641301435280,2.62449778,171.9,171.85,1.47203663]
[1641301435981,27.66479,171.91,171.85,1.47203663]
[1641301436981,2.62460243,171.9,171.85,1.47203663]
[1641301437781,73.81994369,171.92,171.85,1.47203663]
[1641301438281,61.53,171.92,171.85,1.47203663]
[1641301438681,2.62458945,171.91,171.85,1.47203663]
[1641301439483,61.53,171.92,171.85,1.47203663]
[1641301440183,61.53,171.92,171.84,39.95473369]
[1641301440383,61.53,171.92,171.84,27.66479]
[1641301440583,54.97573123,171.92,171.84,27.66479]
[1641301441785,27.66479,171.94,171.84,27.66479]
[1641301444088,2.68276289,171.93,171.85,20.20246818]
[1641301445788,14.97209561,171.93,171.85,20.20246818]
[1641301446492,2.68276289,171.93,171.85,20.20246818]
[1641301447892,12.28933272,171.92,171.85,7.41323444]
[1641301448795,12.28933272,171.92,171.86,1.41323444]
[1641301448995,27.66479,171.91,171.86,1.41323444]
[1641301449397,14.97209561,171.9,171.85,6.0]
[1641301450297,14.97209561,171.9,171.86,1.41315684]
[1641301450597,2.68276289,171.9,171.86,1.41315684]
[1641301452399,2.68276289,171.9,171.82,12.28994369]
[1641301452602,7.38276289,171.9,171.82,12.28994369]
[1641301452798,7.38276289,171.9,171.79,32.72834391]
[1641301452799,12.28933272,171.89,171.79,12.28994369]
[1641301452999,27.66479,171.83,171.79,12.28994369]
[1641301453900,27.66479,171.83,171.77,12.28994369]
[1641301455001,27.66479,171.8,171.77,12.28994369]
[1641301455801,27.66479,171.8,171.73,18.74858131]
[1641301456201,27.66479,171.8,171.73,12.28994369]
[1641301456902,64.1238,171.82,171.73,12.28994369]
[1641301457101,64.1238,171.82,171.73,18.47794369]
[1641301457603,64.1238,171.82,171.77,6.0]
[1641301457804,64.1238,171.82,171.77,11.103]
[1641301458501,64.1238,171.82,171.75,12.28994369]
[1641301458704,64.1238,171.82,171.73,18.74858131]
[1641301459003,27.66479,171.77,171.73,18.74858131]
[1641301459404,27.66479,171.77,171.71,12.28994369]
[1641301460407,27.66479,171.77,171.7,12.28994369]
[1641301461007,27.66479,171.77,171.71,12.28994369]
[1641301462605,27.66479,171.77,171.67,49.52455018]
[1641301462606,27.66479,171.77,171.69,12.28994369]
[1641301462807,63.6691,171.76,171.69,12.28994369]
[1641301463208,27.66479,171.73,171.69,12.28994369]
[1641301463410,34.37079,171.73,171.69,12.28994369]
[1641301463608,34.37079,171.73,171.67,6.45863762]
[1641301464008,34.37079,171.73,171.62,32.72834391]
[1641301465008,34.37079,171.73,171.58,32.72834391]
[1641301465209,27.66479,171.73,171.58,60.39313391]
[1641301465811,27.66479,171.73,171.6,38.54821878]
[1641301466009,27.66479,171.73,171.6,44.51321878]
[1641301466212,27.66479,171.73,171.64,5.81852035]
[1641301466410,63.6691,171.76,171.64,11.77152035]
[1641301466612,60.665,171.8,171.64,44.49986426]
[1641301466811,64.8006,171.79,171.64,44.49986426]
[1641301467114,64.8006,171.79,171.71,27.66479]
[1641301467314,64.8006,171.79,171.71,33.06079]
[1641301468216,64.8006,171.79,171.71,5.396]
[1641301468415,4.09517077,171.76,171.74,4.09517077]
[1641301469215,31.75996077,171.75,171.73,4.09517077]
[1641301470616,4.09517077,171.74,171.73,4.09517077]
[1641301471417,27.66479,171.75,171.71,4.09517077]
[1641301472017,27.66479,171.75,171.72,4.09517077]
[1641301472217,27.66479,171.75,171.72,10.67817077]
[1641301473018,62.4814,171.79,171.72,10.67817077]
[1641301473219,60.39313391,171.8,171.72,10.67817077]
[1641301473418,32.72834391,171.79,171.72,6.583]
[1641301474020,63.1442,171.81,171.74,4.09517077]
[1641301475120,63.1442,171.81,171.75,27.66479]
[1641301475621,63.1442,171.81,171.75,31.75996077]
[1641301476022,62.9028,171.83,171.75,31.75996077]
[1641301476023,32.72834391,171.84,171.75,31.75996077]
[1641301476623,32.72834391,171.85,171.77,4.09517077]
[1641301476822,32.72834391,171.85,171.77,10.74617077]
[1641301477223,32.72834391,171.85,171.82,27.66479]
[1641301477423,63.0656,171.87,171.82,33.48379]
[1641301478625,63.0656,171.87,171.82,5.819]
[1641301479325,63.0656,171.87,171.77,6.651]
[1641301481830,95.79394391,171.87,171.79,4.09517077]
[1641301483228,32.72834391,171.86,171.78,4.09517077]
[1641301483930,32.72834391,171.86,171.77,10.74617077]
[1641301484628,32.72834391,171.85,171.77,10.74617077]
[1641301485328,10.29907031,171.86,171.79,4.09517077]
[1641301486229,10.29907031,171.86,171.8,4.09517077]
[1641301486832,10.29907031,171.86,171.79,4.09517077]
[1641301487329,10.29907031,171.86,171.81,27.66479]